fUST/lending_fUST_20250301
["ID","MTS","AMOUNT","RATE_DAILY","PERIOD"]
[354949623,1740841810402,500.0,0.00027777,2]
[354949624,1740841810657,500.0,0.00028051,2]
[354949625,1740841810931,500.0,0.00028325,2]
[354949626,1740841811224,500.0,0.00028599,2]
[354949627,1740841811511,500.0,0.00028873,2]
[354949628,1740841811791,500.0,0.00029147,2]
[354949629,1740841817188,1909.6,0.00027777,2]
[354949630,1740841817443,1909.6,0.00028051,2]
[354949631,1740841817830,1909.6,0.00028325,2]
[354949632,1740841817971,1909.6,0.00028599,2]
[354949633,1740841818236,1909.6,0.00028873,2]
[354949634,1740841818518,1909.6,0.00029147,2]
[354949635,1740841820429,3663.12,0.00027777,2]
[354949636,1740841820680,3663.12,0.00028051,2]
[354949637,1740841821025,3663.12,0.00028325,2]
[354949638,1740841821287,3663.12,0.00028599,2]
[354949639,1740841821558,3663.12,0.00028873,2]
[354949640,1740841821848,3663.12,0.00029147,2]
[354949641,1740841825254,500.0,0.00027777,2]
[354949642,1740841825539,500.0,0.00028051,2]
[354949643,1740841825822,500.0,0.00028325,2]
[354949644,1740841826079,500.0,0.00028599,2]
[354949645,1740841826341,500.0,0.00028873,2]
[354949646,1740841826604,500.0,0.00029147,2]
[354949647,1740841831314,500.0,0.00027777,2]
[354949648,1740841831551,500.0,0.00028051,2]
[354949649,1740841831827,500.0,0.00028325,2]
[354949657,1740841832068,500.0,0.00028599,2]
[354949659,1740841832376,263.33209096,0.00028873,2]
[354949660,1740841832830,-300.0,0.0002942,2]
[354949661,1740841832840,-4856.77121558,0.00029421,2]
[354949663,1740841832980,-244.95878442,0.00029421,2]
[354949664,1740841832990,-5545.03028736,0.00029421,2]
[354949665,1740841833002,-543.15596667,0.00029421,2]
[354949666,1740841833144,-553.92374597,0.00029421,2]
[354949667,1740841833159,-822.43,0.00029421,2]
[354949668,1740841833178,-2033.6,0.00029421,2]
[354949669,1740841833192,-500.0,0.00029421,2]
[354949670,1740841833203,-1909.6,0.00029421,2]
[354949671,1740841833214,-3663.12,0.00029421,2]
[354949672,1740841833224,-500.0,0.00029421,2]
[354949673,1740841833234,-302.5,0.00029487,3]
[354949674,1740841833244,-151.25,0.00029487,3]
[354949675,1740841833254,-453.76,0.00029487,3]
[354949676,1740841833263,-500.0,0.00029495,2]
[354949677,1740841833277,-500.0,0.00029496,2]
[354949678,1740841833286,-500.0,0.00029496,2]
[354949679,1740841833296,-500.0,0.00029496,2]
[354949680,1740841833306,-500.0,0.00029496,2]
[354949681,1740841833316,-1786.57,0.00029496,2]
[354949682,1740841833327,-500.0,0.00029496,2]
[354949683,1740841833337,-500.0,0.00029496,2]
[354949684,1740841833347,-500.0,0.00029496,2]
[354949685,1740841833356,-500.0,0.00029496,2]
[354949686,1740841833366,-500.0,0.00029496,2]
[354949687,1740841833375,-500.0,0.00029496,2]
[354949688,1740841833385,-500.0,0.00029496,2]
[354949689,1740841833395,-500.0,0.00029496,2]
[354949690,1740841833404,-500.0,0.00029496,2]
[354949691,1740841833413,-500.0,0.00029496,2]
[354949692,1740841833422,-500.0,0.00029496,2]
[354949693,1740841833432,-500.0,0.00029496,2]
[354949694,1740841833442,-500.0,0.00029496,2]
[354949695,1740841833452,-500.0,0.00029496,2]
[354949696,1740841833464,-500.0,0.00029496,2]
[354949697,1740841833475,-95.09554404,0.00029496,2]
[354949699,1740841834800,572.13,0.00027777,2]
[354949700,1740841835061,572.13,0.00028051,2]
[354949701,1740841835331,572.13,0.00028325,2]
[354949702,1740841835597,572.13,0.00028599,2]
[354949703,1740841835742,500.0,0.00027777,2]
[354949704,1740841835855,572.13,0.00028873,2]
[354949705,1740841835989,500.0,0.00028051,2]
[354949706,1740841836118,572.13,0.00029147,2]
[354949707,1740841836277,500.0,0.00028325,2]
[354949708,1740841836559,500.0,0.00028599,2]
[354949709,1740841836808,500.0,0.00028873,2]
[354949710,1740841837061,500.0,0.00029147,2]
[354949711,1740841837898,3086.78,0.00027777,2]
[354949728,1740841838460,3086.78,0.00028051,2]
[354949729,1740841839657,-572.13,0.00029421,2]
[354949730,1740841839668,-500.0,0.00029421,2]
[354949731,1740841839678,-210.40371652,0.00029495,2]
[354949732,1740841839688,-404.90445596,0.00029496,2]
[354949733,1740841839698,-500.0,0.00029496,2]
[354949734,1740841839707,-500.0,0.00029496,2]
[354949735,1740841839720,-444.60848164,0.00029496,2]
[354949736,1740841839731,-508.18433206,0.00029496,2]
[354949737,1740841839742,-890.45,0.00029496,2]
[354949738,1740841839752,-500.0,0.00029496,2]
[354949739,1740841839763,-500.0,0.00029496,2]
[354949740,1740841839773,-500.0,0.00029496,2]
[354949741,1740841839783,-503.60315208,0.00029496,2]
[354949742,1740841839794,-515.05,0.00029496,2]
[354949743,1740841839806,-1278.84,0.00029496,2]
[354949744,1740841839816,-500.0,0.00029496,2]
[354949745,1740841839826,-500.0,0.00029496,2]
[354949746,1740841839837,-258.24907575,0.00029496,2]
[354949747,1740841839847,-174.8351508,0.00029496,2]
[354949748,1740841839857,-500.0,0.00029496,2]
[354949749,1740841839868,-500.0,0.00029496,2]
[354949750,1740841839878,-500.0,0.00029496,2]
[354949751,1740841839889,-500.0,0.00029496,2]
[354949752,1740841839899,-500.0,0.00029496,2]
[354949753,1740841839909,-500.0,0.00029496,2]
[354949754,1740841839919,-500.0,0.00029496,2]
[354949755,1740841839929,-500.0,0.00029496,2]
[354949756,1740841839940,-500.0,0.00029496,2]
[354949757,1740841839950,-500.0,0.00029496,2]
[354949758,1740841839964,-500.0,0.00029496,2]
[354949760,1740841839976,-500.0,0.00029496,2]
[354949761,1740841839986,-500.0,0.00029496,2]
[354949762,1740841839996,-748.99,0.00029496,2]
[354949763,1740841840007,-500.0,0.00029496,2]
[354949764,1740841840017,-500.0,0.00029496,2]
[354949765,1740841840027,-746.2,0.00029496,2]
[354949766,1740841840037,-500.0,0.00029496,2]
[354949767,1740841840047,-80381.00451397,0.00029497,2]
[354949781,1740841842117,3086.78,0.00028325,2]
[354949782,1740841842170,3086.78,0.00028599,2]
[354949783,1740841842233,3086.78,0.00028873,2]
[354949784,1740841842310,520.31529967,0.00029147,2]
[354949785,1740841842566,500.0,0.00027777,2]
[354949793,1740841844829,-2217.53789625,0.00029147,2]
[354949803,1740841845810,-0.85703566,0.00029147,2]
[354949810,1740841846666,-348.06976842,0.00029147,2]
[354949811,1740841846676,-3086.78,0.00029421,2]
[354949812,1740841846686,-976.74,0.00029496,2]
[354949813,1740841846695,-879.47,0.00029496,2]
[354949814,1740841846705,-500.0,0.00029496,2]
[354949815,1740841846715,-500.0,0.00029496,2]
[354949816,1740841846727,-28825.06673137,0.00029497,2]
[354949817,1740841846737,-584.46,0.00029497,2]
[354949818,1740841846746,-3336.18,0.00029497,2]
[354949819,1740841846756,-1785.21,0.00029497,2]
[354949820,1740841846766,-151.0,0.00029497,7]
[354949821,1740841846776,-151.0,0.00029497,7]
[354949822,1740841846785,-173.884084,0.00029497,7]
[354949823,1740841846795,-173.884084,0.00029497,7]
[354949824,1740841846806,-503.37462656,0.00029497,2]
[354949825,1740841846816,-4540.96,0.00029497,2]
[354949826,1740841846826,-500.0,0.00029497,2]
[354949827,1740841846835,-151.0,0.00029497,7]
[354949828,1740841846845,-151.0,0.00029497,7]
[354949829,1740841846855,-151.0,0.00029497,7]
[354949830,1740841846865,-639.84732129,0.00029497,2]
[354949831,1740841846874,-284.083628,0.00029497,7]
[354949832,1740841846884,-151.0,0.00029497,7]
[354949833,1740841846894,-211.308104,0.00029497,7]
[354949834,1740841846903,-9495.89,0.00029497,2]
[354949835,1740841846913,-1010.76,0.00029497,2]
[354949836,1740841846923,-500.0,0.00029497,2]
[354949837,1740841846933,-500.0,0.00029497,2]
[354949838,1740841846942,-2289.62,0.00029497,2]
[354949839,1740841846952,-500.0,0.00029497,2]
[354949840,1740841846961,-506.58290208,0.00029497,2]
[354949841,1740841846971,-357.973879,0.00029497,7]
[354949842,1740841846983,-357.973879,0.00029497,7]
[354949843,1740841846993,-357.973879,0.00029497,7]
[354949844,1740841847002,-357.973879,0.00029497,7]
[354949845,1740841847012,-1579.71,0.00029497,2]
[354949846,1740841847021,-151.0,0.00029497,7]
[354949847,1740841847031,-151.0,0.00029497,7]
[354949848,1740841847040,-151.0,0.00029497,7]
[354949849,1740841847050,-292.559578,0.00029497,7]
[354949850,1740841847059,-189.808483,0.00029497,7]
[354949851,1740841847069,-292.559578,0.00029497,7]
[354949852,1740841847079,-292.559578,0.00029497,7]
[354949853,1740841847088,-292.559578,0.00029497,7]
[354949854,1740841847098,-151.0,0.00029497,7]
[354949855,1740841847107,-151.0,0.00029497,7]
[354949856,1740841847117,-187.898361,0.00029497,7]
[354949857,1740841847127,-187.898361,0.00029497,7]
[354949858,1740841847138,-500.0,0.00029497,2]
[354949859,1740841847148,-187.898361,0.00029497,7]
[354949860,1740841847159,-187.898361,0.00029497,7]
[354949861,1740841847169,-151.0,0.00029497,7]
[354949862,1740841847180,-500.0,0.00029497,2]
[354949863,1740841847190,-797.14,0.00029497,2]
[354949864,1740841847200,-151.0,0.00029497,7]
[354949865,1740841847210,-151.0,0.00029497,7]
[354949866,1740841847219,-151.0,0.00029497,7]
[354949867,1740841847230,-212.305734,0.00029497,7]
[354949868,1740841847240,-681.312255,0.00029497,7]
[354949869,1740841847251,-681.312255,0.00029497,7]
[354949870,1740841847260,-295.08337193,0.00029497,2]
[354949871,1740841847346,-204.91662807,0.00029497,2]
[354949872,1740841847355,-500.0,0.00029497,2]
[354949873,1740841847366,-500.0,0.00029497,2]
[354949874,1740841847375,-433.28188264,0.00029497,2]
[354949875,1740841847751,500.0,0.00027777,2]
[354949876,1740841847770,-500.0,0.00029496,2]
[354949877,1740841847779,-525.3481,0.00029496,2]
[354949878,1740841847789,-66.71811736,0.00029497,2]
[354949879,1740841847800,-500.0,0.00029497,2]
[354949880,1740841847811,-407.85613234,0.00029497,2]
[354949881,1740841847821,-8.2776503,0.00029497,7]
[354949882,1740841847857,500.0,0.00028051,2]
[354949883,1740841847945,500.0,0.00028325,2]
[354949884,1740841849225,893.56590895,0.00027777,2]
[354949885,1740841911278,495.6984766,0.00027397,60]
[354949887,1740842060675,10000.0,0.00028,10]
[354949888,1740842071867,10000.0,0.00028,10]
[354949889,1740842248906,401.654,0.00028,10]
[354949892,1740842449018,9933.05,0.00028,10]
[354949905,1740842825135,-300.0,0.00025597,2]
[354949906,1740842825162,-6881.50217455,0.00025598,2]
[354949907,1740842832105,-14924.94195031,0.00025598,2]
[354949908,1740842833103,-769.98428106,0.00025598,2]
[354949909,1740842837096,-2323.57159408,0.00025598,2]
[354949910,1740842837121,-535.2247362,0.00025661,2]
[354949911,1740842837146,-500.0,0.00025899,2]
[354949912,1740842837169,-500.0,0.00025899,2]
[354949913,1740842837194,-500.0,0.00025899,2]
[354949914,1740842837219,-500.0,0.00025899,2]
[354949915,1740842837246,-500.0,0.00025899,2]
[354949916,1740842837270,-331.70785162,0.00025899,2]
[354949917,1740842837294,-292.3,0.00025899,2]
[354949918,1740842837319,-500.0,0.00025899,2]
[354949919,1740842837343,-500.0,0.00025899,2]
[354949920,1740842837369,-500.0,0.00025899,2]
[354949921,1740842837393,-500.0,0.00025899,2]
[354949922,1740842837416,-500.0,0.00025899,2]
[354949923,1740842837442,-500.0,0.00025899,2]
[354949924,1740842837466,-500.0,0.00025899,2]
[354949925,1740842837489,-13.95539584,0.00025899,2]
[354949926,1740842841087,-486.04460416,0.00025899,2]
[354949927,1740842841114,-500.0,0.00025899,2]
[354949928,1740842841141,-500.0,0.00025899,2]
[354949929,1740842841166,-500.0,0.00025899,2]
[354949930,1740842841194,-144.04797388,0.00025899,2]
[354949932,1740842920561,3073.43859713,0.000145,2]
[354949935,1740842945213,-196.79811355,0.0002061,2]
[354949936,1740842945237,-685.34717226,0.00025251,2]
[354949937,1740842946113,-611.31604084,0.00025251,2]
[354949938,1740842946139,-300.0,0.00025897,2]
[354949939,1740842946164,-500.0,0.00025898,2]
[354949940,1740842946188,-500.0,0.00025898,2]
[354949941,1740842946213,-500.0,0.00025898,2]
[354949942,1740842946238,-500.0,0.00025898,2]
[354949943,1740842946263,-500.0,0.00025898,2]
[354949944,1740842946286,-199.58682351,0.00025898,2]
[354949945,1740842946312,-500.0,0.00025898,2]
[354949946,1740842946335,-500.0,0.00025898,2]
[354949947,1740842946358,-500.0,0.00025898,2]
[354949948,1740842946385,-500.0,0.00025898,2]
[354949949,1740842946408,-500.0,0.00025898,2]
[354949950,1740842946433,-500.0,0.00025898,2]
[354949951,1740842946458,-500.0,0.00025898,2]
[354949952,1740842946483,-500.0,0.00025898,2]
[354949953,1740842946506,-500.0,0.00025898,2]
[354949954,1740842946534,-500.0,0.00025898,2]
[354949955,1740842946558,-500.0,0.00025898,2]
[354949956,1740842946583,-500.0,0.00025898,2]
[354949957,1740842946609,-500.0,0.00025898,2]
[354949958,1740842946634,-500.0,0.00025898,2]
[354949959,1740842946658,-500.0,0.00025898,2]
[354949960,1740842946682,-500.0,0.00025898,2]
[354949961,1740842946708,-500.0,0.00025898,2]
[354949962,1740842946732,-500.0,0.00025898,2]
[354949963,1740842946756,-500.0,0.00025898,2]
[354949964,1740842946780,-500.0,0.00025898,2]
[354949965,1740842946804,-254.1063388,0.00025898,2]
[354949966,1740842946828,-500.0,0.00025898,2]
[354949967,1740842946852,-500.0,0.00025898,2]
[354949968,1740842946875,-500.0,0.00025898,2]
[354949969,1740842946899,-500.0,0.00025898,2]
[354949970,1740842946924,-500.0,0.00025898,2]
[354949971,1740842946949,-500.0,0.00025898,2]
[354949972,1740842946974,-500.0,0.00025898,2]
[354949973,1740842946999,-500.0,0.00025898,2]
[354949974,1740842947024,-500.0,0.00025898,2]
[354949975,1740842947049,-500.0,0.00025898,2]
[354949976,1740842947077,-500.0,0.00025898,2]
[354949977,1740842947102,-500.0,0.00025898,2]
[354949978,1740842947127,-500.0,0.00025898,2]
[354949979,1740842947153,-500.0,0.00025898,2]
[354949980,1740842947179,-500.0,0.00025898,2]
[354949981,1740842947204,-500.0,0.00025898,2]
[354949982,1740842947229,-500.0,0.00025898,2]
[354949983,1740842947255,-500.0,0.00025898,2]
[354949984,1740842947284,-500.0,0.00025898,2]
[354949985,1740842947309,-500.0,0.00025898,2]
[354949986,1740842947336,-500.0,0.00025898,2]
[354949987,1740842947362,-500.0,0.00025898,2]
[354949988,1740842947388,-500.0,0.00025898,2]
[354949989,1740842947413,-500.0,0.00025898,2]
[354949990,1740842947438,-500.0,0.00025898,2]
[354949991,1740842947463,-500.0,0.00025898,2]
[354949992,1740842947488,-500.0,0.00025898,2]
[354949993,1740842947513,-500.0,0.00025898,2]
[354949994,1740842947538,-550.0,0.00025898,2]
[354949995,1740842947562,-500.0,0.00025898,2]
[354949996,1740842947586,-500.0,0.00025898,2]
[354949997,1740842947607,-232.3792632,0.00025899,2]
[354949998,1740842947628,-3739.1028298,0.000259,2]
[354949999,1740842947651,-1342.32689961,0.00026091,2]
[354950000,1740842947672,-665.4610736,0.00026191,2]
[354950001,1740842947694,-2941.2435581,0.00026213,2]
[354950002,1740842947716,-231.3544337,0.00026271,2]
[354950003,1740842947738,-841.676284,0.00026271,2]
[354950004,1740842947758,-423.3416123,0.00026818,2]
[354950005,1740842947782,-337.78982284,0.000269,4]
[354950006,1740842947804,-13723.47611187,0.00027,2]
[354950007,1740842954092,-1113.90942958,0.00027,2]
[354950008,1740842954129,-3391.0917413,0.00027,2]
[354950009,1740842954155,-1342.32689961,0.00027033,2]
[354950010,1740842954178,-2058.61353359,0.00027397,2]
[354950011,1740842954200,-500.0,0.00027397,2]
[354950012,1740842954222,-500.0,0.00027397,2]
[354950013,1740842954243,-248.09106201,0.00027397,2]
[354950014,1740842954264,-500.0,0.00027397,2]
[354950015,1740842954286,-500.0,0.00027397,2]
[354950016,1740842954309,-500.0,0.00027397,2]
[354950017,1740842954331,-500.0,0.00027397,2]
[354950018,1740842954354,-500.0,0.00027397,2]
[354950019,1740842954377,-130.3976158,0.00027452,4]
[354950020,1740842965094,-500.0,0.00025898,2]
[354950021,1740842965120,-300.0,0.00025898,2]
[354950022,1740842965144,-500.0,0.00025898,2]
[354950023,1740842965170,-500.0,0.00025898,2]
[354950024,1740842965192,-150.0,0.000259,2]
[354950025,1740842965214,-3734.16,0.00027397,2]
[354950026,1740842965238,-207.392207,0.00027452,4]
[354950027,1740842965261,-197.87834524,0.00027577,2]
[354950028,1740842965282,-713.23214139,0.00027676,2]
[354950029,1740842965304,-500.0,0.00027691,2]
[354950030,1740842965326,-500.0,0.00027691,2]
[354950031,1740842965347,-291.2,0.00027743,3]
[354950032,1740842965369,-582.39,0.0002775,3]
[354950033,1740842965390,-309.27738554,0.00027759,2]
[354950034,1740842968198,-12655.84261446,0.00027759,2]
[354950035,1740842968222,-155.40500895,0.00027759,2]
[354950036,1740842968247,-2102.03,0.00027759,2]
[354950037,1740842968271,-500.0,0.0002776,2]
[354950038,1740842968294,-550.0,0.0002776,2]
[354950039,1740842968317,-605.0,0.0002776,2]
[354950040,1740842968340,-665.5,0.0002776,2]
[354950041,1740842968362,-1000.0,0.0002776,2]
[354950042,1740842968385,-873.61,0.00027764,3]
[354950043,1740842968409,-500.0,0.00027773,5]
[354950044,1740842968431,-264.8846208,0.00027773,5]
[354950045,1740842968454,-500.0,0.00027773,5]
[354950046,1740842968477,-500.0,0.00027773,5]
[354950047,1740842968500,-500.0,0.00027773,5]
[354950048,1740842968522,-160.0,0.00027773,5]
[354950049,1740842968544,-500.0,0.00027773,5]
[354950050,1740842968566,-500.0,0.00027773,5]
[354950051,1740842968588,-500.0,0.00027773,5]
[354950052,1740842968610,-615.30934532,0.00027773,2]
[354950053,1740842968632,-500.0,0.00027773,5]
[354950054,1740842968655,-371.41551776,0.00027773,5]
[354950055,1740842968676,-564.29048931,0.00027773,5]
[354950056,1740842968697,-500.0,0.00027773,5]
[354950057,1740842968721,-500.0,0.00027773,5]
[354950058,1740842968743,-500.0,0.00027773,5]
[354950059,1740842968766,-500.0,0.00027773,3]
[354950060,1740842968789,-500.0,0.00027774,2]
[354950061,1740842968813,-500.0,0.00027774,2]
[354950062,1740842968836,-1002.35,0.00027774,5]
[354950063,1740842968859,-1132.67,0.00027774,2]
[354950064,1740842968883,-582.56,0.00027774,2]
[354950065,1740842968905,-500.0,0.00027774,2]
[354950066,1740842968928,-500.0,0.00027774,2]
[354950067,1740842968951,-500.0,0.00027774,2]
[354950068,1740842968974,-611.92925838,0.00027774,2]
[354950069,1740842968998,-500.0,0.00027774,2]
[354950070,1740842969022,-498.1873442,0.00027774,2]
[354950071,1740842969044,-1261.58,0.00027774,2]
[354950072,1740842969070,-1236.14,0.00027774,2]
[354950073,1740842969096,-3043.88,0.00027774,2]
[354950074,1740842969121,-500.0,0.00027774,2]
[354950075,1740842969146,-500.0,0.00027774,2]
[354950076,1740842969170,-1172.68,0.00027774,2]
[354950077,1740842969196,-355.5,0.00027774,2]
[354950078,1740842969222,-500.0,0.00027774,2]
[354950079,1740842969246,-500.0,0.00027774,2]
[354950080,1740842969270,-500.0,0.00027774,2]
[354950081,1740842969294,-13420.89,0.00027774,2]
[354950082,1740842969318,-500.0,0.00027774,2]
[354950083,1740842969342,-500.0,0.00027774,2]
[354950084,1740842969366,-8170.71,0.00027774,2]
[354950085,1740842969389,-500.0,0.00027774,2]
[354950086,1740842969414,-4200.24,0.00027774,2]
[354950087,1740842969437,-3734.16,0.00027774,2]
[354950088,1740842969461,-18760.08925855,0.00027775,2]
[354950089,1740842969484,-266.4165696,0.00027775,2]
[354950090,1740842969507,-500.0,0.00027775,2]
[354950091,1740842969530,-500.0,0.00027775,2]
[354950092,1740842969552,-500.0,0.00027775,2]
[354950093,1740842969575,-500.0,0.00027775,2]
[354950094,1740842969598,-500.0,0.00027775,2]
[354950095,1740842969622,-508.17,0.00027775,2]
[354950097,1740842969645,-504.13983412,0.00027775,2]
[354950099,1740842969670,-763.4,0.00027775,2]
[354950100,1740842969692,-509.1268362,0.00027775,2]
[354950101,1740842969716,-500.0,0.00027775,2]
[354950102,1740842969740,-500.0,0.00027775,2]
[354950103,1740842969763,-1511.25,0.00027775,2]
[354950104,1740842969785,-500.0,0.00027775,2]
[354950105,1740842969808,-500.0,0.00027775,2]
[354950106,1740842969832,-1620.0,0.00027775,2]
[354950107,1740842969855,-500.0,0.00027775,2]
[354950108,1740842969878,-500.0,0.00027775,2]
[354950109,1740842969902,-1788.88,0.00027775,2]
[354950110,1740842969926,-500.0,0.00027775,2]
[354950111,1740842969951,-1096.3,0.00027775,2]
[354950112,1740842969975,-500.0,0.00027775,2]
[354950113,1740842970000,-500.0,0.00027775,2]
[354950114,1740842970024,-601.4,0.00027775,2]
[354950115,1740842970048,-500.0,0.00027775,2]
[354950116,1740842970074,-500.0,0.00027775,2]
[354950117,1740842970098,-1238.8,0.00027775,2]
[354950118,1740842970123,-500.0,0.00027775,2]
[354950119,1740842970146,-500.0,0.00027775,2]
[354950120,1740842970172,-1132.27,0.00027775,2]
[354950121,1740842970195,-516.57229199,0.00027775,2]
[354950122,1740842970221,-500.0,0.00027775,2]
[354950123,1740842970245,-1808.76,0.00027775,2]
[354950124,1740842970270,-5150.39,0.00027775,2]
[354950125,1740842970294,-696.9,0.00027775,2]
[354950126,1740842970318,-1440.47,0.00027775,2]
[354950127,1740842970342,-500.0,0.00027775,2]
[354950128,1740842970366,-500.0,0.00027775,2]
[354950129,1740842970390,-2594.71,0.00027775,2]
[354950130,1740842970414,-1352.63,0.00027775,2]
[354950131,1740842970438,-500.0,0.00027775,2]
[354950132,1740842970463,-500.0,0.00027775,2]
[354950133,1740842970487,-2186.47,0.00027775,2]
[354950134,1740842970512,-500.0,0.00027775,2]
[354950135,1740842970536,-1289.52,0.00027775,2]
[354950136,1740842970559,-1314.1,0.00027775,2]
[354950137,1740842970583,-5955.05,0.00027775,2]
[354950138,1740842970607,-573.83,0.00027775,2]
[354950139,1740842970631,-1317.63,0.00027775,2]
[354950140,1740842970656,-10169.15,0.00027775,2]
[354950141,1740842970679,-500.0,0.00027775,2]
[354950142,1740842970704,-2772.06,0.00027775,2]
[354950143,1740842970728,-500.0,0.00027775,2]
[354950144,1740842970753,-500.0,0.00027775,2]
[354950145,1740842970776,-504.68975139,0.00027775,2]
[354950146,1740842970800,-1074.94,0.00027775,2]
[354950147,1740842970824,-500.0,0.00027775,2]
[354950148,1740842970848,-500.0,0.00027775,2]
[354950149,1740842970872,-1726.66,0.00027775,2]
[354950150,1740842970896,-606.63,0.00027775,2]
[354950151,1740842970921,-500.0,0.00027775,2]
[354950152,1740842970948,-996.99,0.00027775,2]
[354950153,1740842970973,-1976.57,0.00027775,2]
[354950154,1740842970998,-3103.01,0.00027775,2]
[354950155,1740842971023,-752.85,0.00027775,2]
[354950156,1740842971048,-1627.18,0.00027775,2]
[354950157,1740842971075,-500.0,0.00027775,2]
[354950158,1740842971100,-732.39,0.00027775,2]
[354950159,1740842971125,-1308.39,0.00027775,2]
[354950160,1740842971151,-1166.12,0.00027775,2]
[354950161,1740842971176,-535.47,0.00027775,2]
[354950162,1740842971201,-500.0,0.00027775,2]
[354950163,1740842971227,-1224.05,0.00027775,2]
[354950164,1740842971252,-500.0,0.00027775,2]
[354950165,1740842971279,-1512.0,0.00027775,2]
[354950166,1740842971304,-500.0,0.00027775,2]
[354950167,1740842971639,-555.98,0.00027775,2]
[354950168,1740842971664,-500.0,0.00027775,2]
[354950169,1740842971687,-1820.87,0.00027775,2]
[354950170,1740842971711,-500.0,0.00027775,2]
[354950171,1740842971736,-500.0,0.00027775,2]
[354950172,1740842971760,-500.0,0.00027775,2]
[354950173,1740842971783,-500.0,0.00027775,2]
[354950174,1740842971806,-578.28,0.00027775,2]
[354950175,1740842971829,-500.0,0.00027775,2]
[354950176,1740842971851,-1019.54,0.00027775,2]
[354950177,1740842971874,-500.0,0.00027775,2]
[354950178,1740842971897,-790.54,0.00027775,2]
[354950179,1740842971922,-1314.59,0.00027775,2]
[354950180,1740842971945,-500.0,0.00027775,2]
[354950181,1740842971968,-500.0,0.00027775,2]
[354950182,1740842971990,-500.0,0.00027775,2]
[354950183,1740842972013,-632.89,0.00027775,2]
[354950184,1740842972036,-160.54,0.00027776,2]
[354950185,1740842972058,-500.0,0.00027776,2]
[354950186,1740842972082,-500.0,0.00027776,2]
[354950187,1740842972104,-299.37873182,0.00027776,2]
[354950188,1740842972127,-500.0,0.00027776,2]
[354950189,1740842972152,-977.65,0.00027776,2]
[354950190,1740842972175,-500.0,0.00027776,2]
[354950191,1740842972197,-310.55208378,0.00027776,2]
[354950192,1740842972222,-500.0,0.00027776,2]
[354950193,1740842972244,-500.0,0.00027776,2]
[354950194,1740842972266,-500.0,0.00027776,2]
[354950195,1740842972288,-500.0,0.00027776,2]
[354950196,1740842972311,-500.0,0.00027776,2]
[354950197,1740842972333,-561.63,0.00027776,2]
[354950198,1740842972356,-500.0,0.00027776,2]
[354950199,1740842972378,-500.0,0.00027776,2]
[354950200,1740842972402,-500.0,0.00027776,2]
[354950201,1740842972426,-500.0,0.00027776,2]
[354950202,1740842972448,-500.0,0.00027776,2]
[354950203,1740842972471,-500.0,0.00027776,2]
[354950204,1740842972496,-500.0,0.00027776,2]